bitfinex-derivatives/quotes_BTCF0:USTF0_20210102
["timestamp","ask_amount","ask_price","bid_price","bid_amount"]
[1609609239528,4.17694855,32585.0,32584.0,6.85446379]
[1609609240133,4.17694806,32585.0,32584.0,6.85446379]
[1609609241530,4.17694717,32585.0,32584.0,6.85446379]
[1609609242833,4.17694668,32585.0,32584.0,6.85446379]
[1609609244532,4.17694619,32585.0,32584.0,6.85446379]
[1609609245336,4.1769457,32585.0,32584.0,6.85446379]
[1609609246136,4.1769457,32585.0,32584.0,7.03489537]
[1609609246638,4.17694521,32585.0,32584.0,7.03489537]
[1609609249540,4.17694472,32585.0,32584.0,7.03489537]
[1609609249941,4.17694472,32585.0,32584.0,7.15023537]
[1609609250142,4.17694423,32585.0,32584.0,7.15023537]
[1609609251041,4.17694374,32585.0,32584.0,7.15023537]
[1609609251544,4.17694325,32585.0,32584.0,7.15023537]
[1609609252244,4.17694276,32585.0,32584.0,7.15023537]
[1609609252645,3.99651118,32585.0,32584.0,7.15023537]
[1609609253447,3.99651069,32585.0,32584.0,7.15023537]
[1609609254149,3.9965102,32585.0,32584.0,7.15023537]
[1609609255351,3.99650971,32585.0,32584.0,7.15023537]
[1609609257150,3.99650921,32585.0,32584.0,7.15023537]
[1609609257350,3.99650921,32585.0,32584.0,6.96980379]
[1609609257849,3.99650872,32585.0,32584.0,6.96980379]
[1609609258151,3.99650872,32585.0,32584.0,7.15023537]
[1609609259751,3.99650823,32585.0,32584.0,7.15023537]
[1609609260353,3.99650774,32585.0,32584.0,7.15023537]
[1609609261353,3.99650725,32585.0,32584.0,7.15023537]
[1609609263857,3.99650637,32585.0,32584.0,7.15023537]
[1609609264657,3.99650588,32585.0,32584.0,7.15023537]
[1609609265154,3.99650539,32585.0,32584.0,7.15023537]
[1609609265355,3.53617088,32585.0,32584.0,7.15023537]
[1609609265558,3.53617039,32585.0,32584.0,7.15023537]
[1609609266256,3.5361699,32585.0,32584.0,7.15023537]
[1609609269461,3.53616941,32585.0,32584.0,7.15023537]
[1609609270365,3.53616892,32585.0,32584.0,7.15023537]
[1609609271364,3.53616843,32585.0,32584.0,7.15023537]
[1609609271565,3.53616793,32585.0,32584.0,7.15023537]
[1609609272666,3.53616705,32585.0,32584.0,7.15023537]
[1609609274270,3.53616656,32585.0,32584.0,7.15023537]
[1609609276483,3.53616607,32585.0,32584.0,7.15023537]
[1609609277174,3.53616558,32585.0,32584.0,7.15023537]
[1609609278179,3.53616509,32585.0,32584.0,7.15023537]
[1609609279380,3.5361646,32585.0,32584.0,7.15023537]
[1609609280186,3.53616411,32585.0,32584.0,7.15023537]
[1609609280981,3.53616411,32585.0,32584.0,8.15023537]
[1609609281181,3.53616362,32585.0,32584.0,8.15023537]
[1609609282586,3.53616312,32585.0,32584.0,8.15023537]
[1609609283487,3.53616263,32585.0,32584.0,8.15023537]
[1609609286689,3.53616214,32585.0,32584.0,8.15023537]
[1609609287192,3.53616165,32585.0,32584.0,8.15023537]
[1609609287592,3.40446165,32585.0,32584.0,8.15023537]
[1609609289097,3.40446116,32585.0,32584.0,8.15023537]
[1609609291796,2.94412665,32585.0,32584.0,8.15023537]
[1609609293199,2.94412616,32585.0,32584.0,8.15023537]
[1609609293399,2.77742616,32585.0,32584.0,8.15023537]
[1609609295402,2.77742616,32585.0,32584.0,1.19577305]
[1609609299806,2.77742567,32585.0,32584.0,1.19577305]
[1609609300606,2.77742518,32585.0,32584.0,0.19577305]
[1609609301807,2.77742469,32585.0,32584.0,0.19577305]
[1609609302909,2.77742469,32585.0,32584.0,0.87557305]
[1609609303109,2.77742469,32585.0,32584.0,0.19577305]
[1609609303309,2.7774242,32585.0,32584.0,0.19577305]
[1609609304011,2.77742371,32585.0,32584.0,0.19577305]
[1609609304311,2.77742371,32585.0,32584.0,3.73377305]
[1609609304511,2.77742234,32585.0,32584.0,4.73377305]
[1609609304912,2.77742234,32585.0,32584.0,4.92134747]
[1609609305111,2.77742234,32585.0,32584.0,1.38334747]
[1609609305312,2.77742234,32585.0,32584.0,1.42123559]
[1609609305712,2.77742234,32585.0,32584.0,1.30869094]
[1609609306313,2.77742185,32585.0,32584.0,7.97431356]
[1609609306713,2.77742185,32585.0,32584.0,8.08677958]
[1609609307414,2.77742136,32585.0,32584.0,8.08677958]
[1609609308214,2.77742087,32585.0,32584.0,8.08677958]
[1609609310717,2.77741999,32585.0,32584.0,8.08677958]
[1609609311318,2.7774195,32585.0,32584.0,8.08677958]
[1609609312218,2.77741901,32585.0,32584.0,8.08677958]
[1609609312417,1.77741901,32585.0,32584.0,8.08677958]
[1609609312819,1.77741852,32585.0,32584.0,8.08677958]
[1609609313619,1.77741803,32585.0,32584.0,8.08677958]
[1609609314220,1.77741754,32585.0,32584.0,8.08677958]
[1609609315620,1.77741705,32585.0,32584.0,8.08677958]
[1609609316721,1.77741655,32585.0,32584.0,8.08677958]
[1609609318323,1.77741606,32585.0,32584.0,8.08677958]
[1609609320129,1.31708155,32585.0,32584.0,8.08677958]
[1609609320730,1.31708106,32585.0,32584.0,8.08677958]
[1609609320928,2.25311332,32600.0,32584.0,8.08677958]
[1609609321130,2.25311283,32600.0,32584.0,8.08677958]
[1609609321330,2.25311283,32600.0,32585.0,0.22533903]
[1609609321529,2.25311283,32600.0,32586.0,1.0]
[1609609322130,2.25311283,32600.0,32587.0,0.11285413]
[1609609322329,2.25311283,32600.0,32588.0,1.0]
[1609609322529,2.25311283,32600.0,32599.0,0.18043158]
[1609609322729,2.25311234,32600.0,32599.0,12.28261018]
[1609609322929,2.25311234,32600.0,32599.0,12.32045852]
[1609609323133,2.25311234,32600.0,32599.0,12.43292625]
[1609609323331,2.25311234,32600.0,32599.0,12.50790474]
[1609609327034,2.25311146,32600.0,32599.0,12.50790474]
[1609609327833,2.25311097,32600.0,32599.0,12.50790474]
[1609609328231,2.25311048,32600.0,32599.0,12.50790474]
[1609609329532,2.25311048,32600.0,32599.0,11.50790474]
[1609609329933,2.25310999,32600.0,32599.0,11.50790474]
[1609609330936,2.2531095,32600.0,32599.0,11.50790474]
[1609609331336,2.25310901,32600.0,32599.0,11.50790474]
[1609609331936,2.25310901,32600.0,32584.0,0.01534147]
[1609609331937,2.25310901,32600.0,32586.0,3.581]
[1609609332537,2.25310901,32600.0,32598.0,0.18043158]
[1609609332737,2.25310851,32600.0,32598.0,0.18043158]
[1609609332938,2.25310851,32600.0,32599.0,0.0378827]
[1609609334141,2.23612427,32600.0,32599.0,0.0378827]
[1609609334541,2.41655585,32600.0,32599.0,0.0378827]
[1609609334743,2.41655585,32600.0,32598.0,0.40585727]
[1609609335143,2.41655585,32600.0,32599.0,0.03788408]
[1609609338850,2.23612427,32600.0,32599.0,0.03788408]
[1609609339849,1.96021157,32600.0,32599.0,0.03788408]
[1609609340751,1.96020832,32600.0,32599.0,0.03788408]
[1609609346160,1.96020783,32600.0,32599.0,0.03788408]
[1609609347561,1.96020734,32600.0,32599.0,0.03788408]
[1609609348160,1.96020685,32600.0,32599.0,0.03788408]
[1609609349162,1.96020636,32600.0,32599.0,0.03788408]
[1609609350164,1.68008596,32600.0,32599.0,0.03788408]
[1609609350965,0.9330737,32600.0,32599.0,0.03788408]
[1609609352467,0.37277813,32600.0,32599.0,0.03788408]
[1609609353267,0.07406819,32600.0,32599.0,0.03788408]
[1609609355172,0.07406819,32600.0,32599.0,0.11287381]
[1609609355570,0.07406819,32600.0,32599.0,0.03788408]
[1609609355770,0.07406819,32600.0,32599.0,3.98658408]
[1609609356171,0.07406471,32600.0,32599.0,3.98658408]
[1609609356370,0.07406471,32600.0,32599.0,4.17403986]
[1609609357374,0.07406422,32600.0,32599.0,4.17403986]
[1609609358072,0.07406373,32600.0,32599.0,4.17403986]
[1609609359175,0.07406324,32600.0,32599.0,4.17403986]
[1609609362976,0.07406324,32600.0,32599.0,5.17403986]
[1609609363176,0.07406275,32600.0,32599.0,5.17403986]
[1609609364077,0.07406275,32600.0,32599.0,4.17403986]
[1609609365683,0.07406226,32600.0,32599.0,4.17403986]
[1609609366283,0.07406177,32600.0,32599.0,4.17403986]
[1609609367584,0.07406128,32600.0,32599.0,4.17403986]
[1609609368186,0.06070054,32600.0,32599.0,4.17403986]
[1609609368984,0.06070054,32600.0,32599.0,0.22533986]
[1609609369185,0.06069991,32600.0,32599.0,0.22533986]
[1609609369384,0.06069991,32600.0,32599.0,0.03788408]
[1609609371187,0.06069942,32600.0,32599.0,0.03788408]
[1609609376205,0.12977668,32615.0,32599.0,0.2253224]
[1609609376696,0.12977668,32615.0,32614.0,0.18043158]
[1609609377196,0.12977668,32615.0,32614.0,0.21829616]
[1609609377497,0.14610949,32620.0,32614.0,0.21829616]
[1609609377897,1.0,32642.0,32614.0,0.21829616]
[1609609378097,1.0,32642.0,32615.0,0.03786439]
[1609609378300,0.62655264,32642.0,32615.0,0.03786439]
[1609609378699,0.18043158,32616.0,32615.0,0.03786439]
[1609609378900,0.18043158,32616.0,32615.0,0.22531652]
[1609609379100,0.52687773,32642.0,32615.0,0.22531652]
[1609609379600,0.52687773,32642.0,32611.0,0.22533127]
[1609609379800,0.52687773,32642.0,32616.0,0.03749108]
[1609609380002,0.52687773,32642.0,32616.0,0.03786637]
[1609609380201,0.52687773,32642.0,32615.0,6.6248905]
[1609609380401,0.52687773,32642.0,32617.0,0.00037529]
[1609609380601,0.52687773,32642.0,32616.0,0.22532201]
[1609609380803,3.68275903,32643.0,32641.0,6.62529561]
[1609609381001,3.68275903,32643.0,32641.0,4.68319561]
[1609609381202,1.0,32642.0,32641.0,2.65879973]
[1609609381803,1.0,32642.0,32641.0,2.88412397]
[1609609382404,0.62650561,32642.0,32641.0,2.88412397]
[1609609382704,0.80693719,32642.0,32641.0,2.88412397]
[1609609383205,0.18043158,32642.0,32641.0,2.88412397]
[1609609383406,0.80693719,32642.0,32641.0,2.88412397]
[1609609383605,0.80693719,32642.0,32641.0,0.88182397]
[1609609383806,0.80693719,32642.0,32641.0,0.22532424]
[1609609384005,0.80693719,32642.0,32640.0,3.68528479]
[1609609384605,0.80693719,32642.0,32638.0,3.32005907]
[1609609385105,0.80693719,32642.0,32639.0,0.22533791]
[1609609386708,0.43341587,32642.0,32639.0,0.22533791]
[1609609386909,0.43341587,32644.0,32637.0,3.33588958]
[1609609387108,0.43341587,32641.0,32637.0,3.33588958]
[1609609387309,0.43341587,32641.0,32638.0,0.22535459]
[1609609387709,0.7212,32640.0,32638.0,0.22535459]
[1609609387909,0.43341587,32639.0,32638.0,0.22535459]
[1609609388709,0.61384745,32639.0,32638.0,0.22535459]
[1609609389409,0.18043158,32639.0,32638.0,0.22535459]
[1609609389809,4.80193158,32639.0,32638.0,0.22535459]
[1609609390010,5.23534745,32639.0,32637.0,3.33588958]
[1609609390913,4.8618154,32639.0,32637.0,3.33588958]
[1609609391717,4.8618154,32639.0,32637.0,3.15444031]
[1609609392317,0.43341587,32639.0,32637.0,3.15444031]
[1609609392518,0.43341587,32638.0,32637.0,3.15444031]
[1609609392717,5.41064745,32638.0,32637.0,3.37979541]
[1609609393119,5.41064745,32638.0,32637.0,0.2253551]
[1609609393719,5.41064745,32638.0,32633.0,0.22535758]
[1609609394220,5.41064745,32638.0,32631.0,0.22535672]
[1609609394419,5.41064745,32638.0,32631.0,0.18748448]
[1609609394721,0.18043158,32632.0,32631.0,0.18748448]
[1609609394919,0.88613158,32632.0,32631.0,0.22535648]
[1609609396121,0.7057,32632.0,32631.0,0.22535648]
[1609609396722,0.88613158,32632.0,32631.0,0.22535648]
[1609609397021,0.18043158,32632.0,32631.0,0.22535648]
[1609609398322,4.44733158,32632.0,32631.0,0.22535648]
[1609609404732,0.18043158,32632.0,32631.0,0.22535648]
[1609609406833,4.20393158,32632.0,32631.0,0.22535648]
[1609609407434,0.18043158,32632.0,32631.0,0.22535648]
[1609609410840,3.6545,32641.0,32631.0,0.22535648]
[1609609412240,3.6545,32641.0,32631.0,0.037872]
[1609609412440,3.6545,32641.0,32632.0,0.03786772]
[1609609412741,0.2962,32643.0,32632.0,0.03786772]
[1609609412943,4.3361,32632.0,32631.0,0.03786782]
[1609609413144,4.3361,32632.0,32627.0,0.18745146]
[1609609413544,4.3361,32632.0,32631.0,0.03786971]
[1609609413745,4.3361,32632.0,32627.0,0.22532105]
[1609609413944,4.3361,32632.0,32631.0,0.03786933]
[1609609414146,0.18043158,32633.0,32628.0,0.03786929]
[1609609414548,0.18043158,32633.0,32632.0,0.03786973]
[1609609414749,0.18043158,32633.0,32629.0,0.03786947]
[1609609414950,0.18043158,32633.0,32632.0,0.03786964]
[1609609415250,0.18043158,32633.0,32630.0,0.03786966]
[1609609415451,0.18043158,32633.0,32627.0,0.22532098]
[1609609415852,0.18043158,32633.0,32631.0,0.03786883]
[1609609416051,0.18043158,32633.0,32628.0,0.03786934]
[1609609416255,0.18043158,32633.0,32632.0,0.03786887]
[1609609416652,0.18043158,32633.0,32629.0,0.03786841]
[1609609416854,0.18043158,32633.0,32632.0,3.72492629]
[1609609417053,0.18043158,32633.0,32632.0,3.91237961]
[1609609418154,0.18043158,32633.0,32632.0,3.87451099]
[1609609418356,3.8366,32643.0,32632.0,3.91237893]
[1609609418656,3.8366,32643.0,32633.0,0.22532249]
[1609609418858,3.8366,32643.0,32637.0,0.18043158]
[1609609419157,3.8366,32643.0,32638.0,0.03786855]
[1609609419358,0.2962,32643.0,32638.0,0.03786855]
[1609609419958,0.2962,32643.0,32633.0,0.22532252]
[1609609420958,4.2363,32643.0,32634.0,0.18043158]
[1609609421258,4.2363,32643.0,32635.0,0.03786807]
[1609609421760,4.2363,32643.0,32635.0,3.35121204]
[1609609422164,4.2363,32643.0,32636.0,0.22532095]
[1609609422761,0.72961587,32643.0,32636.0,0.22532095]
[1609609422962,4.76883158,32637.0,32636.0,0.22532095]
[1609609427969,0.18043158,32637.0,32636.0,0.22532095]
[1609609430373,0.72333158,32637.0,32636.0,0.22532095]
[1609609432679,0.18043158,32637.0,32636.0,0.22532095]
[1609609432878,3.76203158,32637.0,32636.0,0.22532095]
[1609609435693,0.18043158,32637.0,32636.0,0.22532095]
[1609609436182,3.88723158,32637.0,32636.0,0.22532095]
[1609609438895,0.18043158,32637.0,32636.0,0.22532095]
[1609609440689,0.2962,32643.0,32636.0,0.22532095]
[1609609440987,0.18043158,32637.0,32636.0,0.40575253]
[1609609442288,0.18043158,32637.0,32636.0,0.22532095]
[1609609443491,0.18043158,32637.0,32636.0,3.53668505]
[1609609444091,0.18043158,32637.0,32636.0,0.22532095]
[1609609444691,0.18043158,32637.0,32632.0,0.22534751]
[1609609444992,0.18043158,32633.0,32632.0,0.22534751]
[1609609448898,4.5129,32638.0,32632.0,0.22534751]
[1609609449097,4.5129,32638.0,32634.0,0.18043158]
[1609609449699,4.5129,32638.0,32635.0,0.03786901]
[1609609451100,0.18043158,32636.0,32635.0,0.22532876]
[1609609451303,1.18043158,32636.0,32635.0,0.22532876]
[1609609452003,5.95673158,32636.0,32635.0,0.22532876]
[1609609454305,5.95673158,32636.0,32630.0,0.22535431]
[1609609455106,0.18043158,32631.0,32630.0,0.22535431]
[1609609455307,1.18043158,32631.0,32630.0,0.22535431]
[1609609455508,4.95523158,32631.0,32630.0,0.22535431]
[1609609457509,1.18043158,32631.0,32630.0,0.22535431]
[1609609457710,1.84863158,32631.0,32625.0,3.3198294]
[1609609457909,1.84863158,32631.0,32626.0,0.18787042]
[1609609458109,1.18043158,32631.0,32626.0,0.22536902]
[1609609458311,4.1304,32627.0,32626.0,0.22536902]
[1609609458509,5.1304,32627.0,32626.0,0.22536902]
[1609609459110,5.31083158,32627.0,32626.0,0.22536902]
[1609609460713,5.31083158,32627.0,32625.0,3.3198294]
[1609609461315,1.18043158,32627.0,32625.0,3.3198294]
[1609609462217,1.18043158,32627.0,32621.0,3.32338561]
[1609609462619,1.18043158,32627.0,32622.0,0.11251624]
[1609609462820,1.18043158,32627.0,32622.0,0.22540996]
[1609609463020,3.8071,32623.0,32622.0,0.22540996]
[1609609463220,4.98753158,32623.0,32622.0,0.22540996]
[1609609463820,4.98753158,32623.0,32617.0,3.32803935]
[1609609464021,4.98753158,32623.0,32618.0,0.22543069]
[1609609464522,4.98753158,32623.0,32617.0,2.99543935]
[1609609464723,1.18043158,32623.0,32617.0,2.99543935]
[1609609465122,3.4686,32613.0,32607.0,3.69954762]
[1609609465323,1.0,32612.0,32607.0,3.69954762]
[1609609465522,1.0,32612.0,32608.0,0.22545473]
[1609609466023,1.0,32612.0,32608.0,0.11291615]
[1609609466422,1.0,32612.0,32609.0,0.03789314]
[1609609466822,1.0,32612.0,32600.0,0.18758302]
[1609609467124,0.18043158,32601.0,32600.0,0.22547789]
[1609609467324,0.18043158,32601.0,32596.0,0.22548045]
[1609609467624,0.18043158,32601.0,32600.0,0.03789284]
[1609609467924,0.18043158,32601.0,32597.0,0.03789254]
[1609609468125,0.18043158,32601.0,32600.0,0.03789294]
[1609609468425,0.18043158,32601.0,32598.0,0.03789236]
[1609609468826,1.0,32612.0,32596.0,0.22547812]
[1609609469026,3.4686,32613.0,32599.0,0.037892]
[1609609469229,1.0,32612.0,32602.0,0.18043158]
[1609609469427,1.0,32612.0,32603.0,0.03789215]
[1609609470929,1.0,32611.0,32603.0,0.03789215]
[1609609471129,0.18043158,32604.0,32603.0,0.03789215]
[1609609472932,1.0,32612.0,32603.0,0.03789215]
[1609609473132,0.18043158,32604.0,32603.0,0.03789215]
[1609609475633,3.70243158,32604.0,32603.0,0.03789215]
[1609609475834,0.18043158,32604.0,32603.0,0.03789215]
[1609609479252,0.18043158,32610.0,32603.0,0.03789215]
[1609609480636,0.2945,32617.0,32603.0,0.03789215]
[1609609481138,0.2945,32617.0,32616.0,0.18043158]
[1609609481538,0.2945,32617.0,32616.0,0.21832041]
[1609609485144,0.47493158,32617.0,32616.0,0.21832041]
[1609609490749,0.2945,32617.0,32616.0,0.21832041]
[1609609498963,1.18043158,32626.0,32616.0,0.21832041]
[1609609499262,1.18043158,32626.0,32622.0,0.18043158]
[1609609499662,0.18043158,32626.0,32623.0,0.03788115]
[1609609501665,1.18043158,32626.0,32623.0,0.03788115]
[1609609502666,0.18043158,32626.0,32623.0,0.03788115]
[1609609508775,0.18043158,32626.0,32622.0,0.40582016]
[1609609508973,4.6833,32648.0,32622.0,0.40582016]
[1609609509174,0.297,32647.0,32624.0,0.0378774]
[1609609509373,0.297,32647.0,32643.0,0.18043158]
[1609609509975,0.297,32647.0,32644.0,0.03787386]
[1609609511277,0.47743158,32647.0,32644.0,0.03787386]
[1609609512178,0.297,32647.0,32644.0,0.03787386]
[1609609515279,0.18043158,32645.0,32644.0,0.03787386]
[1609609516284,1.18043158,32645.0,32644.0,0.03787386]
[1609609518385,0.18043158,32645.0,32644.0,0.03787386]
[1609609520590,0.297,32647.0,32644.0,0.03787386]
[1609609532709,0.297,32647.0,32644.0,0.11284338]
[1609609538913,0.297,32647.0,32645.0,3.7673]
[1609609539313,0.297,32647.0,32646.0,0.22527219]
[1609609539712,0.297,32647.0,32646.0,5.24107219]
[1609609540114,0.297,32647.0,32646.0,5.0158]
[1609609540313,4.3178,32681.0,32646.0,5.24103175]
[1609609540514,0.2751,32680.0,32646.0,5.24103175]
[1609609540712,0.2751,32680.0,32647.0,0.11241334]
[1609609540913,0.2751,32680.0,32647.0,0.22520268]
[1609609541513,0.2751,32680.0,32670.0,0.18043158]
[1609609541914,0.2751,32680.0,32671.0,0.03784607]
[1609609543514,0.18043158,32672.0,32671.0,0.03784607]
[1609609546819,0.17043158,32672.0,32671.0,0.03784607]
[1609609547820,0.2751,32680.0,32671.0,0.03784607]
[1609609548220,0.18043158,32672.0,32670.0,0.18043158]
[1609609548620,0.18043158,32672.0,32671.0,0.03784626]
[1609609548821,0.17043158,32672.0,32671.0,0.03784626]
[1609609550620,0.16043158,32672.0,32671.0,0.03784626]
[1609609550822,4.7807,32671.0,32655.0,0.07493956]
[1609609551021,1.0,32670.0,32650.0,0.03784611]
[1609609551221,5.0845,32656.0,32649.0,0.18735062]
[1609609551622,5.0845,32656.0,32651.0,0.03785092]
[1609609551823,5.0845,32656.0,32649.0,0.11279128]
[1609609552023,5.0845,32656.0,32652.0,0.03784995]
[1609609552222,5.0845,32656.0,32655.0,0.18043158]
[1609609552423,0.2824,32668.0,32655.0,0.18043158]
[1609609552623,5.3392,32668.0,32655.0,0.21828182]
[1609609552823,5.3392,32668.0,32656.0,0.03785029]
[1609609553023,6.3392,32668.0,32656.0,0.03785029]
[1609609554124,5.3392,32668.0,32656.0,0.03785029]
[1609609554325,0.18043158,32657.0,32656.0,0.03785029]
[1609609556225,0.18043158,32657.0,32655.0,0.18043158]
[1609609556527,0.18043158,32657.0,32656.0,0.03785255]
[1609609558229,4.5949,32667.0,32656.0,0.03785255]
[1609609560233,4.5949,32667.0,32666.0,0.18043158]
[1609609560733,0.2724,32668.0,32666.0,0.21827738]
[1609609561234,0.2724,32668.0,32667.0,0.03784456]
[1609609562742,0.1771,32681.0,32667.0,0.03784456]
[1609609563735,0.1771,32681.0,32668.0,0.01]
[1609609564135,0.1771,32681.0,32669.0,0.03783371]
[1609609564337,0.1771,32681.0,32680.0,0.18043158]
[1609609564638,0.1771,32681.0,32680.0,0.21826462]
[1609609565036,0.18043158,32688.0,32680.0,0.21826462]
[1609609565436,0.18043158,32688.0,32681.0,0.03783267]
[1609609565635,0.18043158,32688.0,32681.0,0.04783267]
[1609609566037,0.18043158,32688.0,32682.0,0.03783273]
[1609609566440,3.7729,32687.0,32685.0,0.18043158]
[1609609566837,3.7729,32687.0,32686.0,0.03783304]
[1609609567239,3.7729,32687.0,32682.0,0.03783453]
[1609609568340,3.7729,32687.0,32686.0,0.18043158]
[1609609568540,0.1771,32701.0,32686.0,0.18043158]
[1609609568939,0.1771,32701.0,32687.0,0.03783307]
[1609609570342,0.18043158,32688.0,32687.0,0.03783307]
[1609609573853,0.1771,32701.0,32687.0,0.03783307]
[1609609574056,0.2801,32700.0,32687.0,3.64413307]
[1609609574459,0.2801,32700.0,32699.0,0.18043158]
[1609609574657,0.2801,32700.0,32699.0,0.21824703]
[1609609575552,0.2801,32700.0,32699.0,0.29311335]
[1609609575952,0.2801,32700.0,32699.0,0.21824703]
[1609609576255,0.2801,32700.0,32699.0,0.29310654]
[1609609576660,0.2801,32700.0,32699.0,2.56268531]
[1609609577054,0.2801,32700.0,32699.0,2.4878258]
[1609609578154,0.00050415,32700.0,32699.0,2.30854554]
[1609609578354,0.18043158,32717.0,32699.0,2.30854554]
[1609609578555,0.18043158,32717.0,32699.0,0.21824703]
[1609609578955,0.7075,32733.0,32701.0,1.90831942]
[1609609579155,0.1771,32748.0,32707.0,3.8788]
[1609609579356,1.0,32747.0,32702.0,0.03779734]
[1609609579555,4.2042,32738.0,32702.0,0.03779734]
[1609609579756,1.0,32737.0,32705.0,1.90198352]
[1609609580255,0.1771,32748.0,32705.0,1.90198352]
[1609609580455,0.1771,32748.0,32709.0,4.8584]
[1609609580655,0.24388431,32750.0,32709.0,4.8584]
[1609609580855,0.1771,32748.0,32710.0,0.18043158]
[1609609581057,0.1771,32748.0,32710.0,0.18080704]
[1609609581255,0.5331,32747.0,32711.0,0.00037544]
[1609609582357,0.5331,32747.0,32729.0,0.18043158]
[1609609582760,0.5331,32747.0,32730.0,0.00037534]
[1609609584363,0.356,32747.0,32742.0,0.18043158]
[1609609584765,0.1771,32766.0,32742.0,0.18043158]
[1609609584964,0.1771,32766.0,32743.0,0.0003753]
[1609609586267,0.1771,32766.0,32729.0,3.6717]
[1609609586468,0.1771,32766.0,32744.0,0.00037528]
[1609609586669,0.1771,32766.0,32741.0,0.00037528]
[1609609586968,0.00929021,32763.0,32745.0,0.00037525]
[1609609587168,0.00382538,32762.0,32745.0,0.00037525]
[1609609587369,0.00382538,32762.0,32741.0,0.00037525]
[1609609587568,0.00382538,32762.0,32746.0,0.00037525]
[1609609587770,0.00382538,32762.0,32742.0,0.00037527]
[1609609588170,0.00382538,32762.0,32741.0,0.00037525]
[1609609588370,0.2802,32760.0,32743.0,0.00037527]
[1609609588571,0.2802,32760.0,32742.0,0.00037527]
[1609609588970,0.2802,32760.0,32738.0,0.18043158]
[1609609589371,0.2802,32760.0,32739.0,0.00037523]
[1609609590376,0.18043158,32740.0,32739.0,0.00037523]
[1609609591776,0.18043158,32740.0,32722.0,0.00037674]
[1609609591976,0.18043158,32740.0,32739.0,0.00037674]
[1609609592276,0.18043158,32740.0,32723.0,0.00037674]
[1609609592477,4.8292,32754.0,32735.0,0.18043158]
[1609609592676,4.8292,32754.0,32739.0,0.00037674]
[1609609592877,4.8292,32754.0,32736.0,0.00037674]
[1609609593076,4.8292,32754.0,32740.0,0.00037674]
[1609609593277,0.00380627,32759.0,32737.0,0.00037674]
[1609609593676,0.28944381,32760.0,32741.0,0.00037674]
[1609609593677,0.2802,32760.0,32741.0,0.00037674]
[1609609593876,0.2802,32760.0,32738.0,0.00037674]
[1609609594075,0.2802,32760.0,32742.0,0.00037674]
[1609609594376,0.2802,32760.0,32747.0,0.18043158]
[1609609594580,1.0,32759.0,32696.0,1.0]
[1609609594776,4.8209,32753.0,32718.0,3.8598]
[1609609594976,4.8209,32753.0,32698.0,9.1435]
[1609609594977,1.0,32753.0,32740.0,0.00037675]
[1609609595177,5.3068,32753.0,32719.0,0.00037677]
[1609609595378,5.3068,32753.0,32718.0,5.0249]
[1609609595778,5.3068,32753.0,32720.0,0.00037681]
[1609609595979,1.0,32753.0,32719.0,0.00037681]
[1609609596179,4.7532,32737.0,32721.0,0.00037687]
[1609609596379,0.18043158,32722.0,32721.0,0.00037687]
[1609609596580,0.18043158,32722.0,32720.0,0.00037687]
[1609609596780,0.18043158,32722.0,32721.0,0.00037692]
[1609609597380,0.18043158,32722.0,32707.0,0.00037695]
[1609609597580,0.18043158,32722.0,32721.0,0.00037698]
[1609609597781,0.46043158,32722.0,32694.0,0.03741991]
[1609609598082,0.46043158,32722.0,32694.0,0.03779693]
[1609609598480,0.28,32722.0,32709.0,0.18043158]
[1609609598681,0.28,32722.0,32694.0,0.03779693]
[1609609598880,0.28,32722.0,32710.0,0.00037699]
[1609609599082,0.28,32722.0,32695.0,0.03779615]
[1609609599280,0.28,32722.0,32703.0,0.0059]
[1609609599480,0.28,32722.0,32711.0,0.00037699]
[1609609599680,0.28,32722.0,32703.0,0.0059]
[1609609599881,0.28,32722.0,32712.0,0.00037699]
[1609609600280,0.28,32722.0,32704.0,0.03779338]
[1609609600480,0.28,32722.0,32713.0,0.00037688]
[1609609600682,0.28,32722.0,32705.0,0.00037688]
[1609609600881,0.28,32722.0,32704.0,0.03779334]
[1609609601282,0.28,32722.0,32706.0,0.00037691]
[1609609601481,0.28,32722.0,32706.0,0.11569]
[1609609601881,0.28,32722.0,32707.0,0.03778874]
[1609609602483,0.28,32722.0,32721.0,0.18043158]
[1609609602783,0.28,32722.0,32721.0,0.21821815]
[1609609607391,0.1771,32750.0,32721.0,0.21821815]
[1609609607589,0.1771,32750.0,32722.0,0.01]
[1609609607789,0.1771,32750.0,32722.0,0.04777145]
[1609609608188,0.1771,32750.0,32723.0,0.03777175]
[1609609608389,0.1771,32750.0,32733.0,0.18043158]
[1609609608789,0.1771,32750.0,32734.0,0.03777265]
[1609609610393,0.1771,32750.0,32739.0,0.18043158]
[1609609610893,0.1771,32750.0,32740.0,0.03776601]
[1609609612395,0.18043158,32741.0,32740.0,0.03776601]
[1609609613597,0.16043158,32741.0,32740.0,0.03776601]
[1609609616302,0.1771,32750.0,32740.0,0.03776601]
[1609609616503,0.1771,32750.0,32747.0,0.18043158]
[1609609617003,0.1771,32750.0,32748.0,0.03776295]
[1609609620405,0.18043158,32751.0,32748.0,0.03776295]
[1609609621006,0.18043158,32751.0,32742.0,0.03776118]
[1609609622507,0.2947,32756.0,32746.0,0.18043158]
[1609609622706,0.2947,32756.0,32742.0,0.03776118]
[1609609622907,0.2947,32756.0,32747.0,0.03776204]
[1609609623109,0.2947,32756.0,32743.0,0.03776285]
[1609609623307,1.0,32755.0,32748.0,0.03776238]
[1609609623708,4.4589,32747.0,32744.0,0.0377653]
[1609609623908,1.0,32746.0,32741.0,0.0061]
[1609609624108,1.0,32746.0,32745.0,0.00037669]
[1609609624309,1.0,32746.0,32742.0,0.00037671]
[1609609624509,0.18043158,32743.0,32742.0,0.00037671]
[1609609624710,1.18043158,32743.0,32741.0,0.0061]
[1609609624910,1.18043158,32743.0,32742.0,0.00037674]
[1609609626610,1.18043158,32743.0,32722.0,0.01]
[1609609627010,1.18043158,32743.0,32723.0,0.03777663]
[1609609627510,1.18043158,32743.0,32721.0,0.0377786]
[1609609627812,1.18043158,32743.0,32707.0,0.03777881]
[1609609628012,1.18043158,32743.0,32722.0,0.03777911]
[1609609628312,1.18043158,32743.0,32708.0,0.03777994]
[1609609628513,1.0,32743.0,32715.0,0.18043158]
[1609609628713,0.1771,32746.0,32715.0,0.18043158]
[1609609628714,1.0,32742.0,32723.0,0.03777968]
[1609609628913,1.0,32742.0,32715.0,0.18043158]
[1609609629114,1.0,32742.0,32724.0,0.03777725]
[1609609629314,1.03,32742.0,32724.0,0.03740046]
[1609609629513,1.03,32742.0,32716.0,0.03777551]
[1609609629713,0.03,32742.0,32725.0,0.03777401]
[1609609629914,0.03,32742.0,32716.0,0.03777297]